[Event "*** Titled Tuesday Blitz"]
[Site "Chess.com"]
[Date "2021.03.09"]
[Round "2"]
[White "swisspower96"]
[Black "ChampStan"]
[Result "0-1"]
[WhiteElo "2584"]
[BlackElo "2021"]
[TimeControl "180+1"]
[EndTime "10:19:14 PST"]
[Termination "ChampStan won on time"]

1. d4 {[%clk 0:03:00.9]} 1... Nf6 {[%clk 0:02:57.7]} 2. c4 {[%clk 0:03:01.1]}
2... g6 {[%clk 0:02:57.3]} 3. Nc3 {[%clk 0:03:00.7]} 3... d5 {[%clk 0:02:56.6]}
4. cxd5 {[%clk 0:03:00.9]} 4... Nxd5 {[%clk 0:02:54.7]} 5. e4 {[%clk 0:03:01.2]}
5... Nxc3 {[%clk 0:02:54.8]} 6. bxc3 {[%clk 0:03:00.7]} 6... Bg7 {[%clk
0:02:55.4]} 7. Bc4 {[%clk 0:03:01.2]} 7... O-O {[%clk 0:02:53.7]} 8. Ne2 {[%clk
0:03:01.6]} 8... c5 {[%clk 0:02:53.3]} 9. O-O {[%clk 0:03:01.5]} 9... Nc6 {[%clk
0:02:53.5]} 10. Be3 {[%clk 0:03:01.9]} 10... Bg4 {[%clk 0:02:53.5]} 11. f3
{[%clk 0:03:01.8]} 11... Bd7 {[%clk 0:02:54.2]} 12. Rb1 {[%clk 0:03:02.4]} 12...
Rc8 {[%clk 0:02:43.6]} 13. Qd2 {[%clk 0:02:51.1]} 13... Na5 {[%clk 0:02:32.4]}
14. Bd3 {[%clk 0:02:48.5]} 14... cxd4 {[%clk 0:02:05]} 15. cxd4 {[%clk
0:02:46.2]} 15... b5 {[%clk 0:02:04.5]} 16. h4 {[%clk 0:02:43.4]} 16... Nc4
{[%clk 0:01:59.1]} 17. Bxc4 {[%clk 0:02:43]} 17... bxc4 {[%clk 0:02:00]} 18. h5
{[%clk 0:02:39.8]} 18... Ba4 {[%clk 0:01:25.6]} 19. Rfc1 {[%clk 0:02:26.6]}
19... Qd7 {[%clk 0:01:20]} 20. Nc3 {[%clk 0:02:11.7]} 20... Rfd8 {[%clk
0:01:17.4]} 21. Rb4 {[%clk 0:02:05.8]} 21... Bc6 {[%clk 0:01:08.3]} 22. Rxc4
{[%clk 0:02:02.8]} 22... e6 {[%clk 0:01:06.8]} 23. e5 {[%clk 0:01:46.8]} 23...
Bb7 {[%clk 0:00:37.5]} 24. Rxc8 {[%clk 0:01:40.9]} 24... Rxc8 {[%clk 0:00:37.6]}
25. Bg5 {[%clk 0:01:31.7]} 25... h6 {[%clk 0:00:24]} 26. Bf6 {[%clk 0:01:20.3]}
26... Bxf6 {[%clk 0:00:23.3]} 27. exf6 {[%clk 0:01:21.2]} 27... g5 {[%clk
0:00:23.4]} 28. f4 {[%clk 0:01:10.1]} 28... Rc4 {[%clk 0:00:21.3]} 29. Ne2
{[%clk 0:01:07.8]} 29... Qc6 {[%clk 0:00:18]} 30. Nc3 {[%clk 0:00:53.2]} 30...
Rxd4 {[%clk 0:00:17.9]} 31. Qb2 {[%clk 0:00:25]} 31... Rxf4 {[%clk 0:00:16.7]}
32. Rc2 {[%clk 0:00:10.2]} 32... Qc5+ {[%clk 0:00:16.8]} 33. Rf2 {[%clk
0:00:04.1]} 33... g4 {[%clk 0:00:17.2]} 34. Kf1 {[%clk 0:00:01.2]} 34... Ba6+
{[%clk 0:00:10.5]} 0-1

[Event "*** Titled Tuesday Blitz"]
[Site "Chess.com"]
[Date "2021.03.09"]
[Round "2"]
[White "GelmanAlexander"]
[Black "Duhless"]
[Result "0-1"]
[WhiteElo "2588"]
[BlackElo "3019"]
[TimeControl "180+1"]
[EndTime "10:19:21 PST"]
[Termination "Duhless won on time"]

1. d4 {[%clk 0:03:00.9]} 1... Nf6 {[%clk 0:02:59.3]} 2. Nc3 {[%clk 0:03:00.8]}
2... d5 {[%clk 0:02:58.8]} 3. Bf4 {[%clk 0:03:00.5]} 3... a6 {[%clk 0:02:57.9]}
4. e3 {[%clk 0:03:00.4]} 4... c5 {[%clk 0:02:57.9]} 5. Nf3 {[%clk 0:03:00.6]}
5... Nc6 {[%clk 0:02:58.1]} 6. Ne5 {[%clk 0:03:00.8]} 6... g6 {[%clk 0:02:57]}
7. h4 {[%clk 0:02:41.4]} 7... h5 {[%clk 0:02:52.6]} 8. Qd2 {[%clk 0:02:35.4]}
8... Bg7 {[%clk 0:02:51.7]} 9. O-O-O {[%clk 0:02:30.6]} 9... O-O {[%clk
0:02:51.6]} 10. Nxc6 {[%clk 0:01:48.9]} 10... bxc6 {[%clk 0:02:51.2]} 11. Be5
{[%clk 0:01:49.4]} 11... Bh6 {[%clk 0:02:36.9]} 12. dxc5 {[%clk 0:01:00.5]}
12... Nd7 {[%clk 0:02:36.5]} 13. Bf4 {[%clk 0:01:00.3]} 13... Bg7 {[%clk
0:02:35.5]} 14. Na4 {[%clk 0:00:58.7]} 14... e5 {[%clk 0:02:30]} 15. Bh2 {[%clk
0:00:58.4]} 15... Rb8 {[%clk 0:02:30.1]} 16. f4 {[%clk 0:00:58.2]} 16... Nf6
{[%clk 0:02:23]} 17. fxe5 {[%clk 0:00:49.7]} 17... Ne4 {[%clk 0:02:22.7]} 18.
Qe1 {[%clk 0:00:49.8]} 18... Bg4 {[%clk 0:02:15.9]} 19. Rd4 {[%clk 0:00:42.1]}
19... Qe7 {[%clk 0:02:14.4]} 20. Bd3 {[%clk 0:00:41.3]} 20... Nxc5 {[%clk
0:02:10.9]} 21. Nxc5 {[%clk 0:00:39.7]} 21... Qxc5 {[%clk 0:02:11.8]} 22. Rxg4
{[%clk 0:00:24.9]} 22... hxg4 {[%clk 0:02:10.8]} 23. h5 {[%clk 0:00:25.7]} 23...
Bh6 {[%clk 0:01:44.9]} 24. Bf4 {[%clk 0:00:21.6]} 24... Bxf4 {[%clk 0:01:44.1]}
25. exf4 {[%clk 0:00:22.5]} 25... Qd4 {[%clk 0:01:44.5]} 26. hxg6 {[%clk
0:00:14.7]} 26... Qxb2+ {[%clk 0:01:39.9]} 27. Kd2 {[%clk 0:00:15.2]} 27... Qb4+
{[%clk 0:01:36.1]} 28. Ke2 {[%clk 0:00:14.9]} 28... Qxe1+ {[%clk 0:01:30.6]} 29.
Rxe1 {[%clk 0:00:11.5]} 29... fxg6 {[%clk 0:01:31.5]} 30. g3 {[%clk 0:00:11.9]}
30... Kg7 {[%clk 0:01:31.4]} 31. Ke3 {[%clk 0:00:09.9]} 31... c5 {[%clk
0:01:30.8]} 32. c4 {[%clk 0:00:08.3]} 32... Rfd8 {[%clk 0:01:24.5]} 33. cxd5
{[%clk 0:00:06.4]} 33... Rxd5 {[%clk 0:01:25.4]} 34. Rc1 {[%clk 0:00:06.3]}
34... Rb4 {[%clk 0:01:21.6]} 35. Be2 {[%clk 0:00:04.4]} 35... Ra4 {[%clk
0:01:17.9]} 36. Rc2 {[%clk 0:00:03.9]} 36... Ra3+ {[%clk 0:00:56.5]} 37. Kf2
{[%clk 0:00:04.3]} 37... g5 {[%clk 0:00:56.9]} 38. Bxg4 {[%clk 0:00:04.3]} 38...
gxf4 {[%clk 0:00:57]} 39. gxf4 {[%clk 0:00:05.2]} 39... Rd4 {[%clk 0:00:57.4]}
40. Ke2 {[%clk 0:00:02.9]} 40... Re4+ {[%clk 0:00:56.3]} 41. Kd2 {[%clk
0:00:02.5]} 41... Rxf4 {[%clk 0:00:56.5]} 42. Be2 {[%clk 0:00:02.8]} 42... Rd4+
{[%clk 0:00:54.8]} 43. Kc1 {[%clk 0:00:02.7]} 43... Re4 {[%clk 0:00:51]} 44. e6
{[%clk 0:00:02.4]} 44... Rxe6 {[%clk 0:00:49.8]} 45. Bc4 {[%clk 0:00:03]} 45...
Re5 {[%clk 0:00:42.3]} 46. Kb2 {[%clk 0:00:02.8]} 46... Ra5 {[%clk 0:00:30.3]}
47. Kb3 {[%clk 0:00:02.1]} 47... Kf6 {[%clk 0:00:27.9]} 0-1

[Event "*** Titled Tuesday Blitz"]
[Site "Chess.com"]
[Date "2021.03.09"]
[Round "2"]
[White "jacky72"]
[Black "Benjoneliere44"]
[Result "1-0"]
[WhiteElo "2710"]
[BlackElo "2494"]
[TimeControl "180+1"]
[EndTime "10:19:23 PST"]
[Termination "jacky72 won by resignation"]

1. d4 {[%clk 0:03:00.9]} 1... d6 {[%clk 0:02:59.6]} 2. c4 {[%clk 0:03:01.4]}
2... e5 {[%clk 0:02:58.4]} 3. Nf3 {[%clk 0:03:01.9]} 3... e4 {[%clk 0:02:58.2]}
4. Ng5 {[%clk 0:03:02.3]} 4... f5 {[%clk 0:02:58.7]} 5. g3 {[%clk 0:03:02.8]}
5... Nf6 {[%clk 0:02:58.9]} 6. Bg2 {[%clk 0:03:03.2]} 6... Be7 {[%clk
0:02:59.2]} 7. b3 {[%clk 0:03:03.1]} 7... c6 {[%clk 0:02:59.3]} 8. O-O {[%clk
0:03:03.3]} 8... O-O {[%clk 0:02:58.7]} 9. f3 {[%clk 0:03:02.3]} 9... d5 {[%clk
0:02:58.6]} 10. cxd5 {[%clk 0:03:01.8]} 10... cxd5 {[%clk 0:02:58.5]} 11. fxe4
{[%clk 0:03:00]} 11... fxe4 {[%clk 0:02:58]} 12. Nh3 {[%clk 0:03:00.6]} 12...
Nc6 {[%clk 0:02:52.3]} 13. Nf4 {[%clk 0:02:47]} 13... g5 {[%clk 0:02:43.1]} 14.
Nh3 {[%clk 0:02:43.9]} 14... h6 {[%clk 0:02:43.2]} 15. Nf2 {[%clk 0:02:41.2]}
15... Be6 {[%clk 0:02:36.9]} 16. e3 {[%clk 0:02:41.3]} 16... Qd7 {[%clk
0:02:34.3]} 17. Ba3 {[%clk 0:02:41.1]} 17... Bxa3 {[%clk 0:02:30.5]} 18. Nxa3
{[%clk 0:02:40.9]} 18... Rf7 {[%clk 0:02:24.2]} 19. Qd2 {[%clk 0:02:30.4]} 19...
Raf8 {[%clk 0:02:22.2]} 20. Nc2 {[%clk 0:02:30.9]} 20... Kg7 {[%clk 0:02:21.2]}
21. Nb4 {[%clk 0:02:30.3]} 21... Nxb4 {[%clk 0:01:50.8]} 22. Qxb4 {[%clk
0:02:29.8]} 22... h5 {[%clk 0:01:51.4]} 23. Kh1 {[%clk 0:01:59.1]} 23... h4
{[%clk 0:01:46.6]} 24. gxh4 {[%clk 0:02:00]} 24... gxh4 {[%clk 0:01:47.1]} 25.
Rg1 {[%clk 0:02:00.7]} 25... Kh7 {[%clk 0:01:41.5]} 26. Qd2 {[%clk 0:01:56.7]}
26... Qd6 {[%clk 0:01:33.3]} 27. Bh3 {[%clk 0:01:52.4]} 27... Qd7 {[%clk
0:01:14.7]} 28. Bxe6 {[%clk 0:01:50.1]} 28... Qxe6 {[%clk 0:01:15.6]} 29. Qe2
{[%clk 0:01:47.2]} 29... Qf5 {[%clk 0:01:13.5]} 30. Rg2 {[%clk 0:01:34.6]} 30...
Qf3 {[%clk 0:01:01.3]} 31. Qxf3 {[%clk 0:01:31.5]} 31... exf3 {[%clk 0:01:02.2]}
32. Rg5 {[%clk 0:01:22.4]} 32... Ne4 {[%clk 0:01:00.3]} 33. Nxe4 {[%clk
0:01:22.8]} 33... dxe4 {[%clk 0:01:00.7]} 34. Rag1 {[%clk 0:01:23.5]} 34... Rf5
{[%clk 0:00:51.6]} 35. R5g4 {[%clk 0:01:20.4]} 35... R8f6 {[%clk 0:00:47.5]} 36.
Rxe4 {[%clk 0:01:12.5]} 36... f2 {[%clk 0:00:45.7]} 37. Rxh4+ {[%clk 0:01:12]}
37... Rh6 {[%clk 0:00:45.3]} 38. Rxh6+ {[%clk 0:01:12.5]} 38... Kxh6 {[%clk
0:00:46.2]} 39. Rf1 {[%clk 0:01:13.2]} 39... Rf3 {[%clk 0:00:46.6]} 40. Kg2
{[%clk 0:01:13.5]} 40... Rxe3 {[%clk 0:00:47.2]} 41. Rxf2 {[%clk 0:01:12.9]}
41... Rd3 {[%clk 0:00:47.9]} 42. Kf1 {[%clk 0:00:41.1]} 42... Rxd4 {[%clk
0:00:47.7]} 43. Ke2 {[%clk 0:00:41.4]} 43... a5 {[%clk 0:00:42.9]} 44. Ke3
{[%clk 0:00:31.6]} 44... Rh4 {[%clk 0:00:42.7]} 45. Rg2 {[%clk 0:00:20.6]} 45...
a4 {[%clk 0:00:40.7]} 46. Kd3 {[%clk 0:00:21.1]} 46... axb3 {[%clk 0:00:40.6]}
47. axb3 {[%clk 0:00:22]} 47... b5 {[%clk 0:00:38]} 48. Kc3 {[%clk 0:00:22.1]}
48... b4+ {[%clk 0:00:36.6]} 49. Kd3 {[%clk 0:00:22.6]} 49... Kh7 {[%clk
0:00:34.6]} 50. Rg3 {[%clk 0:00:20.8]} 50... Kh6 {[%clk 0:00:34.1]} 51. h3
{[%clk 0:00:20.7]} 51... Kh7 {[%clk 0:00:33.5]} 52. Rg4 {[%clk 0:00:20.8]} 52...
Rxh3+ {[%clk 0:00:31.6]} 53. Kc4 {[%clk 0:00:21.4]} 1-0

[Event "*** Titled Tuesday Blitz"]
[Site "Chess.com"]
[Date "2021.03.09"]
[Round "2"]
[White "DrCeltic"]
[Black "chessdiamant"]
[Result "1-0"]
[WhiteElo "2484"]
[BlackElo "2264"]
[TimeControl "180+1"]
[EndTime "10:19:23 PST"]
[Termination "DrCeltic won by resignation"]

1. e4 {[%clk 0:03:00.9]} 1... e6 {[%clk 0:02:58.7]} 2. d4 {[%clk 0:03:00.6]}
2... d5 {[%clk 0:02:58.6]} 3. Nd2 {[%clk 0:03:00.9]} 3... Nf6 {[%clk 0:02:58.4]}
4. e5 {[%clk 0:03:00.8]} 4... Nfd7 {[%clk 0:02:58.9]} 5. Bd3 {[%clk 0:03:01.2]}
5... c5 {[%clk 0:02:59.1]} 6. f4 {[%clk 0:03:01.4]} 6... Nc6 {[%clk 0:02:58.6]}
7. Ngf3 {[%clk 0:03:01.1]} 7... cxd4 {[%clk 0:02:58.2]} 8. O-O {[%clk
0:03:00.8]} 8... Bc5 {[%clk 0:02:56.4]} 9. Kh1 {[%clk 0:03:00.3]} 9... O-O
{[%clk 0:02:56]} 10. Nb3 {[%clk 0:02:58.8]} 10... f6 {[%clk 0:02:50.3]} 11. exf6
{[%clk 0:02:51.9]} 11... Qxf6 {[%clk 0:02:46.4]} 12. Qe2 {[%clk 0:02:37.3]}
12... a5 {[%clk 0:02:42.4]} 13. Ng5 {[%clk 0:02:34.1]} 13... e5 {[%clk
0:02:00.4]} 14. Nxh7 {[%clk 0:02:24.2]} 14... Qe7 {[%clk 0:01:37.3]} 15. Nxf8
{[%clk 0:02:22.8]} 15... e4 {[%clk 0:01:37.4]} 16. Nxd7 {[%clk 0:02:03.4]} 16...
Bxd7 {[%clk 0:01:38.3]} 17. Bb5 {[%clk 0:01:55.3]} 17... a4 {[%clk 0:01:22.2]}
18. Nxc5 {[%clk 0:01:48.6]} 18... Qxc5 {[%clk 0:01:23.1]} 19. Bxc6 {[%clk
0:01:44.6]} 19... Bxc6 {[%clk 0:01:22.9]} 20. f5 {[%clk 0:01:41.8]} 20... Bb5
{[%clk 0:01:22.3]} 21. Qg4 {[%clk 0:01:33.1]} 21... Bxf1 {[%clk 0:01:04.1]} 22.
Bd2 {[%clk 0:01:34]} 22... Bb5 {[%clk 0:00:52.4]} 23. f6 {[%clk 0:01:32.1]}
23... Qc7 {[%clk 0:00:49.6]} 24. Bh6 {[%clk 0:01:26.9]} 24... Qd7 {[%clk
0:00:33.5]} 25. Qg3 {[%clk 0:01:21]} 25... Qf7 {[%clk 0:00:24.2]} 26. Bxg7
{[%clk 0:01:20.4]} 26... Be8 {[%clk 0:00:23.7]} 27. Qh4 {[%clk 0:01:10.2]} 27...
Qh5 {[%clk 0:00:22.1]} 28. Qf2 {[%clk 0:01:03.9]} 28... e3 {[%clk 0:00:19]} 29.
Qf4 {[%clk 0:01:02.1]} 29... e2 {[%clk 0:00:16.3]} 30. Qxd4 {[%clk 0:00:58]}
30... Ra6 {[%clk 0:00:16.3]} 31. Re1 {[%clk 0:00:43.5]} 31... Re6 {[%clk
0:00:16.2]} 32. Qf2 {[%clk 0:00:40.3]} 32... Bg6 {[%clk 0:00:11.8]} 33. h3
{[%clk 0:00:34.6]} 33... Bxc2 {[%clk 0:00:11.6]} 34. Qc5 {[%clk 0:00:33.8]}
34... Be4 {[%clk 0:00:09.7]} 35. Qf8+ {[%clk 0:00:28.5]} 35... Kh7 {[%clk
0:00:09]} 36. Qh8+ {[%clk 0:00:28.4]} 36... Kg6 {[%clk 0:00:09.5]} 37. Qxh5+
{[%clk 0:00:26.5]} 37... Kxh5 {[%clk 0:00:09.9]} 38. f7 {[%clk 0:00:22.1]} 38...
Bxg2+ {[%clk 0:00:04.5]} 39. Kxg2 {[%clk 0:00:20.4]} 39... Rg6+ {[%clk
0:00:03.1]} 40. Kh2 {[%clk 0:00:20.6]} 40... Rxg7 {[%clk 0:00:04]} 41. f8=Q
{[%clk 0:00:20.7]} 41... Kh4 {[%clk 0:00:01.9]} 42. Qf2+ {[%clk 0:00:20]} 1-0

[Event "*** Titled Tuesday Blitz"]
[Site "Chess.com"]
[Date "2021.03.09"]
[Round "2"]
[White "Zmeeed63"]
[Black "Vandros57"]
[Result "1-0"]
[WhiteElo "2443"]
[BlackElo "2204"]
[TimeControl "180+1"]
[EndTime "10:19:23 PST"]
[Termination "Zmeeed63 won on time"]

1. d4 {[%clk 0:03:00.9]} 1... d5 {[%clk 0:02:58.5]} 2. c4 {[%clk 0:02:59.2]}
2... e6 {[%clk 0:02:57.6]} 3. Nc3 {[%clk 0:02:55.7]} 3... Nf6 {[%clk 0:02:56.6]}
4. cxd5 {[%clk 0:02:54.7]} 4... exd5 {[%clk 0:02:55.5]} 5. Bg5 {[%clk
0:02:53.2]} 5... c6 {[%clk 0:02:53.8]} 6. e3 {[%clk 0:02:52.4]} 6... Be7 {[%clk
0:02:50.8]} 7. Bd3 {[%clk 0:02:52.5]} 7... O-O {[%clk 0:02:47.4]} 8. Qc1 {[%clk
0:02:44.7]} 8... Nbd7 {[%clk 0:02:39]} 9. Nge2 {[%clk 0:02:45.2]} 9... h6 {[%clk
0:02:35.1]} 10. Bh4 {[%clk 0:02:44.6]} 10... Ne4 {[%clk 0:02:31.4]} 11. Bxe7
{[%clk 0:02:43.1]} 11... Qxe7 {[%clk 0:02:30.4]} 12. O-O {[%clk 0:02:42.2]}
12... f5 {[%clk 0:02:27.3]} 13. Rb1 {[%clk 0:02:36.6]} 13... a5 {[%clk
0:02:24.2]} 14. Na4 {[%clk 0:02:35.9]} 14... Ndf6 {[%clk 0:02:15]} 15. Nb6
{[%clk 0:02:20]} 15... Rb8 {[%clk 0:02:13.1]} 16. Qe1 {[%clk 0:02:16.7]} 16...
Ng4 {[%clk 0:02:01.2]} 17. f3 {[%clk 0:01:28.6]} 17... Nxe3 {[%clk 0:01:56.3]}
18. fxe4 {[%clk 0:01:26.6]} 18... Nxf1 {[%clk 0:01:55.3]} 19. e5 {[%clk
0:01:24.8]} 19... Ne3 {[%clk 0:01:48.5]} 20. Nf4 {[%clk 0:01:25.1]} 20... Qb4
{[%clk 0:01:20.2]} 21. Nxc8 {[%clk 0:01:12.7]} 21... Qxd4 {[%clk 0:01:10.1]} 22.
Qf2 {[%clk 0:01:05]} 22... Rfxc8 {[%clk 0:01:02.2]} 23. Re1 {[%clk 0:01:05]}
23... Qxe5 {[%clk 0:00:50.4]} 24. Rxe3 {[%clk 0:01:02.8]} 24... Qf6 {[%clk
0:00:43.1]} 25. Rg3 {[%clk 0:00:40.6]} 25... Re8 {[%clk 0:00:37.9]} 26. Nh5
{[%clk 0:00:37.8]} 26... Qe5 {[%clk 0:00:26.8]} 27. Nxg7 {[%clk 0:00:30.1]}
27... Qe1+ {[%clk 0:00:21.2]} 28. Qxe1 {[%clk 0:00:29.7]} 28... Rxe1+ {[%clk
0:00:20.9]} 29. Kf2 {[%clk 0:00:30.6]} 29... Re5 {[%clk 0:00:17.8]} 30. Nxf5+
{[%clk 0:00:28.5]} 30... Kf8 {[%clk 0:00:17.4]} 31. Nxh6 {[%clk 0:00:28.2]}
31... Rbe8 {[%clk 0:00:15]} 32. Rg8+ {[%clk 0:00:22.9]} 32... Ke7 {[%clk
0:00:15.1]} 33. Rg7+ {[%clk 0:00:23.1]} 33... Kd6 {[%clk 0:00:15.1]} 34. Ng4
{[%clk 0:00:19.8]} 34... Rf8+ {[%clk 0:00:12.3]} 35. Kg3 {[%clk 0:00:19.5]}
35... Re7 {[%clk 0:00:09.7]} 36. Rg6+ {[%clk 0:00:18.3]} 36... Kc5 {[%clk
0:00:08.4]} 37. h4 {[%clk 0:00:18.2]} 37... b5 {[%clk 0:00:05.6]} 38. h5 {[%clk
0:00:18.1]} 38... a4 {[%clk 0:00:04.9]} 39. a3 {[%clk 0:00:17.2]} 39... Kd4
{[%clk 0:00:04.7]} 40. Bc2 {[%clk 0:00:15.5]} 40... Re2 {[%clk 0:00:03.8]} 41.
Rxc6 {[%clk 0:00:14.8]} 41... Rd2 {[%clk 0:00:02.4]} 42. h6 {[%clk 0:00:13.9]}
1-0

[Event "*** Titled Tuesday Blitz"]
[Site "Chess.com"]
[Date "2021.03.09"]
[Round "2"]
[White "urutodo"]
[Black "Majesth"]
[Result "0-1"]
[WhiteElo "2304"]
[BlackElo "2568"]
[TimeControl "180+1"]
[EndTime "10:19:27 PST"]
[Termination "Majesth won on time"]

1. e4 {[%clk 0:03:00.9]} 1... g6 {[%clk 0:02:59.8]} 2. d4 {[%clk 0:03:00.7]}
2... Bg7 {[%clk 0:03:00.4]} 3. Nc3 {[%clk 0:03:01.1]} 3... d6 {[%clk 0:03:00.9]}
4. Be3 {[%clk 0:03:01.4]} 4... a6 {[%clk 0:03:01.3]} 5. Qd2 {[%clk 0:03:00.3]}
5... Nd7 {[%clk 0:03:01.3]} 6. Nge2 {[%clk 0:03:00.6]} 6... b5 {[%clk
0:03:01.3]} 7. Ng3 {[%clk 0:02:50.6]} 7... Bb7 {[%clk 0:03:00.6]} 8. Bd3 {[%clk
0:02:50.8]} 8... c5 {[%clk 0:02:59.7]} 9. d5 {[%clk 0:02:40.6]} 9... h5 {[%clk
0:02:49.5]} 10. Nd1 {[%clk 0:02:30]} 10... Ngf6 {[%clk 0:02:42]} 11. f3 {[%clk
0:02:28]} 11... Ne5 {[%clk 0:02:31.1]} 12. Be2 {[%clk 0:02:22.3]} 12... h4
{[%clk 0:02:25]} 13. Nf1 {[%clk 0:02:22.2]} 13... Qd7 {[%clk 0:02:03.4]} 14. c3
{[%clk 0:02:19.5]} 14... a5 {[%clk 0:01:53.4]} 15. Nf2 {[%clk 0:02:18.7]} 15...
Ba6 {[%clk 0:01:42.1]} 16. h3 {[%clk 0:02:00.3]} 16... b4 {[%clk 0:01:39]} 17.
Ng4 {[%clk 0:01:52.5]} 17... Nfxg4 {[%clk 0:01:01.4]} 18. hxg4 {[%clk
0:01:51.9]} 18... Nc4 {[%clk 0:00:58.2]} 19. Bxc4 {[%clk 0:01:51.2]} 19... Bxc4
{[%clk 0:00:59.1]} 20. Bg5 {[%clk 0:01:25.8]} 20... Bxf1 {[%clk 0:00:48.4]} 21.
Kxf1 {[%clk 0:01:20.6]} 21... Qb5+ {[%clk 0:00:48.5]} 22. Kg1 {[%clk 0:01:21]}
22... Qc4 {[%clk 0:00:39.2]} 23. cxb4 {[%clk 0:00:47.3]} 23... axb4 {[%clk
0:00:40.1]} 24. Rxh4 {[%clk 0:00:28.2]} 24... Rxh4 {[%clk 0:00:38.5]} 25. Bxh4
{[%clk 0:00:29.1]} 25... Rxa2 {[%clk 0:00:33.6]} 26. Rxa2 {[%clk 0:00:27.3]}
26... Qxa2 {[%clk 0:00:34.4]} 27. Qg5 {[%clk 0:00:25.1]} 27... Bf6 {[%clk
0:00:29]} 28. Qh6 {[%clk 0:00:25.3]} 28... Qxb2 {[%clk 0:00:26.3]} 29. Bg3
{[%clk 0:00:18.8]} 29... b3 {[%clk 0:00:22.4]} 30. Qh7 {[%clk 0:00:18.8]} 30...
Qc1+ {[%clk 0:00:16.7]} 31. Kh2 {[%clk 0:00:18.6]} 31... b2 {[%clk 0:00:17.1]}
32. Qg8+ {[%clk 0:00:18.8]} 32... Kd7 {[%clk 0:00:17.3]} 33. Qb8 {[%clk
0:00:14.5]} 33... b1=Q {[%clk 0:00:09.4]} 34. Qa7+ {[%clk 0:00:14.3]} 34... Kc8
{[%clk 0:00:09.4]} 35. Qa8+ {[%clk 0:00:13]} 35... Qb8 {[%clk 0:00:08.4]} 36.
Qc6+ {[%clk 0:00:13.2]} 36... Kd8 {[%clk 0:00:08.9]} 37. e5 {[%clk 0:00:12.3]}
37... Bxe5 {[%clk 0:00:08.7]} 38. Bxe5 {[%clk 0:00:02.1]} 38... dxe5 {[%clk
0:00:09.6]} 39. d6 {[%clk 0:00:02.7]} 39... Qf4+ {[%clk 0:00:08.9]} 40. Kh3
{[%clk 0:00:01.9]} 40... exd6 {[%clk 0:00:08.6]} 0-1

[Event "*** Titled Tuesday Blitz"]
[Site "Chess.com"]
[Date "2021.03.09"]
[Round "2"]
[White "boasovietica"]
[Black "Fiona"]
[Result "1-0"]
[WhiteElo "2442"]
[BlackElo "2199"]
[TimeControl "180+1"]
[EndTime "10:19:28 PST"]
[Termination "boasovietica won by resignation"]

1. e4 {[%clk 0:03:00.9]} 1... e5 {[%clk 0:02:59.7]} 2. Nf3 {[%clk 0:03:00.7]}
2... Nc6 {[%clk 0:03:00.1]} 3. Bb5 {[%clk 0:02:59.9]} 3... a6 {[%clk 0:02:59.8]}
4. Ba4 {[%clk 0:02:59.9]} 4... d6 {[%clk 0:03:00.4]} 5. c3 {[%clk 0:02:53.6]}
5... Bd7 {[%clk 0:02:57.6]} 6. O-O {[%clk 0:02:52.4]} 6... Nge7 {[%clk
0:02:57.6]} 7. d4 {[%clk 0:02:50.4]} 7... Ng6 {[%clk 0:02:57.8]} 8. h3 {[%clk
0:02:43.4]} 8... Be7 {[%clk 0:02:57.7]} 9. Re1 {[%clk 0:02:42.8]} 9... h6 {[%clk
0:02:57.6]} 10. Nbd2 {[%clk 0:02:40.9]} 10... Bg5 {[%clk 0:02:57.4]} 11. Nf1
{[%clk 0:02:38.8]} 11... Bxc1 {[%clk 0:02:56.5]} 12. Rxc1 {[%clk 0:02:38.2]}
12... O-O {[%clk 0:02:45.4]} 13. Ne3 {[%clk 0:02:18]} 13... b5 {[%clk
0:02:09.8]} 14. Bb3 {[%clk 0:02:14.2]} 14... Nf4 {[%clk 0:01:57.1]} 15. dxe5
{[%clk 0:02:10.7]} 15... Nxe5 {[%clk 0:01:50.5]} 16. Nxe5 {[%clk 0:02:03.2]}
16... dxe5 {[%clk 0:01:49]} 17. Nd5 {[%clk 0:01:53.8]} 17... Be6 {[%clk
0:01:34.6]} 18. Nxf4 {[%clk 0:01:51]} 18... exf4 {[%clk 0:01:35.5]} 19. Bxe6
{[%clk 0:01:28.9]} 19... fxe6 {[%clk 0:01:36.4]} 20. Qg4 {[%clk 0:01:28.5]}
20... Rf6 {[%clk 0:01:10.8]} 21. Rcd1 {[%clk 0:01:24.4]} 21... Qe7 {[%clk
0:01:07.2]} 22. Rd3 {[%clk 0:01:13.4]} 22... Rd8 {[%clk 0:00:32.1]} 23. Red1
{[%clk 0:01:12.9]} 23... Rxd3 {[%clk 0:00:31.9]} 24. Rxd3 {[%clk 0:01:13.8]}
24... Kh7 {[%clk 0:00:30.2]} 25. Rd4 {[%clk 0:01:04.7]} 25... c5 {[%clk
0:00:19.4]} 26. Rd3 {[%clk 0:01:00.4]} 26... Rf8 {[%clk 0:00:16.7]} 27. Kh2
{[%clk 0:00:52.9]} 27... Rf7 {[%clk 0:00:14.8]} 28. f3 {[%clk 0:00:50.7]} 28...
Rf8 {[%clk 0:00:14.5]} 29. Qh5 {[%clk 0:00:43.3]} 29... Rf6 {[%clk 0:00:11.3]}
30. Qe5 {[%clk 0:00:40.9]} 30... Rf7 {[%clk 0:00:05.9]} 31. Rd6 {[%clk
0:00:39.3]} 31... Rf6 {[%clk 0:00:05.4]} 32. Qxc5 {[%clk 0:00:34.2]} 32... e5
{[%clk 0:00:05.9]} 33. Rd5 {[%clk 0:00:34.5]} 33... Qf7 {[%clk 0:00:04.5]} 34.
b3 {[%clk 0:00:19.3]} 34... Rg6 {[%clk 0:00:04.6]} 35. Rxe5 {[%clk 0:00:15.9]}
35... Qf6 {[%clk 0:00:04.3]} 36. Rf5 {[%clk 0:00:14]} 36... Qh4 {[%clk
0:00:04.4]} 37. Qg1 {[%clk 0:00:09.2]} 37... Qg3+ {[%clk 0:00:04.4]} 38. Kh1
{[%clk 0:00:09.6]} 38... Qh4 {[%clk 0:00:03.6]} 39. Rd5 {[%clk 0:00:08.6]} 39...
Qg3 {[%clk 0:00:03.7]} 40. Rd2 {[%clk 0:00:07]} 40... Rg5 {[%clk 0:00:04]} 41.
Qf2 {[%clk 0:00:07]} 41... Qxf2 {[%clk 0:00:02.7]} 42. Rxf2 {[%clk 0:00:07.3]}
42... Rg6 {[%clk 0:00:03.6]} 43. Rd2 {[%clk 0:00:07.8]} 43... Re6 {[%clk
0:00:03.5]} 44. Rd3 {[%clk 0:00:07.6]} 1-0